[Event "Titled Tuesday Blitz June 07 Early 2022"]
[White "Kozak, Adam"]
[Black "Agibileg, Uurtsaikh"]
[WhiteFideId "753246"]
[BlackFideId "4901606"]
[WhiteElo "2459"]
[BlackElo "2205"]
[Result "1-0"]
[Round "03"]
[TimeControl "180+1"]
[Date "2022.06.07"]
[WhiteClock "0:02:08"]
[BlackClock "0:00:06"]

1. e4 {[%clk 0:02:57]}  c5 {[%clk 0:02:59]} 2. Nf3 {[%clk 0:02:56]}  e6 {[%clk 0:02:59]} 3. b3 {[%clk 0:02:56]}  Nf6 {[%clk 0:02:57]} 4. e5 {[%clk 0:02:54]}  Nd5 {[%clk 0:02:57]} 5. Bb2 {[%clk 0:02:54]}  Nc6 {[%clk 0:02:52]} 6. Nc3 {[%clk 0:02:54]}  d6 {[%clk 0:02:42]} 7. Nxd5 {[%clk 0:02:53]}  exd5 {[%clk 0:02:43]} 8. Bb5 {[%clk 0:02:53]}  d4 {[%clk 0:02:07]} 9. c3 {[%clk 0:02:45]}  dxe5 {[%clk 0:02:04]} 10. Nxe5 {[%clk 0:02:41]}  Qd5 {[%clk 0:01:34]} 11. Qe2 {[%clk 0:02:35]}  Be6 {[%clk 0:01:34]} 12. Nxc6 {[%clk 0:02:30]}  bxc6 {[%clk 0:01:33]} 13. Bc4 {[%clk 0:02:30]}  Qxg2 {[%clk 0:01:29]} 14. O-O-O {[%clk 0:02:30]}  d3 {[%clk 0:01:16]} 15. Bxd3 {[%clk 0:02:21]}  Be7 {[%clk 0:00:54]} 16. Be4 {[%clk 0:02:19]}  Bg4 {[%clk 0:00:36]} 17. Bxg2 {[%clk 0:02:19]}  Bxe2 {[%clk 0:00:36]} 18. Bxc6+ {[%clk 0:02:19]}  Kd8 {[%clk 0:00:37]} 19. Bxa8 {[%clk 0:02:19]}  Bxd1 {[%clk 0:00:37]} 20. Rxd1 {[%clk 0:02:18]}  Kd7 {[%clk 0:00:35]} 21. Bg2 {[%clk 0:02:18]}  Bg5 {[%clk 0:00:30]} 22. Kc2 {[%clk 0:02:18]}  Re8 {[%clk 0:00:30]} 23. Bf1 {[%clk 0:02:16]}  Kd6 {[%clk 0:00:27]} 24. d4 {[%clk 0:02:14]}  cxd4 {[%clk 0:00:23]} 25. Rxd4+ {[%clk 0:02:14]}  Ke5 {[%clk 0:00:23]} 26. h4 {[%clk 0:02:09]}  Bf6 {[%clk 0:00:21]} 27. Bh3 {[%clk 0:02:08]}  Rd8 {[%clk 0:00:06]} 28. f4# {[%clk 0:02:08]} 1-0


[Site "https://www.chess.com"]

[Event "Titled Tuesday Blitz June 07 Early 2022"]
[White "Lazavik, Denis"]
[Black "Rosen, Eric"]
[WhiteFideId "13515110"]
[BlackFideId "2032562"]
[WhiteElo "2437"]
[BlackElo "2362"]
[Result "1-0"]
[Round "03"]
[TimeControl "180+1"]
[Date "2022.06.07"]
[WhiteClock "0:00:10"]
[BlackClock "0:00:01"]

1. d4 {[%clk 0:02:57]}  d5 {[%clk 0:02:58]} 2. c4 {[%clk 0:02:56]}  e6 {[%clk 0:02:56]} 3. Nf3 {[%clk 0:02:53]}  Nf6 {[%clk 0:02:56]} 4. g3 {[%clk 0:02:51]}  dxc4 {[%clk 0:02:55]} 5. Bg2 {[%clk 0:02:51]}  Bb4+ {[%clk 0:02:54]} 6. Bd2 {[%clk 0:02:51]}  c5 {[%clk 0:02:54]} 7. Bxb4 {[%clk 0:02:40]}  cxb4 {[%clk 0:02:55]} 8. Ne5 {[%clk 0:02:39]}  O-O {[%clk 0:02:54]} 9. O-O {[%clk 0:02:37]}  Nc6 {[%clk 0:02:53]} 10. Nxc6 {[%clk 0:02:07]}  bxc6 {[%clk 0:02:53]} 11. a3 {[%clk 0:02:08]}  b3 {[%clk 0:02:36]} 12. Bxc6 {[%clk 0:02:00]}  Rb8 {[%clk 0:02:36]} 13. Nc3 {[%clk 0:02:00]}  Bb7 {[%clk 0:02:32]} 14. Bxb7 {[%clk 0:01:58]}  Rxb7 {[%clk 0:02:32]} 15. Rc1 {[%clk 0:01:59]}  Qa5 {[%clk 0:02:08]} 16. e3 {[%clk 0:01:56]}  Rc7 {[%clk 0:02:00]} 17. Qe2 {[%clk 0:01:53]}  Rfc8 {[%clk 0:02:00]} 18. Rfd1 {[%clk 0:01:52]}  h5 {[%clk 0:01:56]} 19. h3 {[%clk 0:01:49]}  Qf5 {[%clk 0:01:52]} 20. Kg2 {[%clk 0:01:49]}  Ne4 {[%clk 0:01:45]} 21. Qf3 {[%clk 0:01:36]}  Nxc3 {[%clk 0:01:06]} 22. Qxf5 {[%clk 0:01:11]}  exf5 {[%clk 0:00:52]} 23. Rxc3 {[%clk 0:01:10]}  Kf8 {[%clk 0:00:53]} 24. d5 {[%clk 0:01:07]}  Rc5 {[%clk 0:00:48]} 25. d6 {[%clk 0:01:06]}  a5 {[%clk 0:00:30]} 26. Rd4 {[%clk 0:01:04]}  Rd8 {[%clk 0:00:25]} 27. Kf3 {[%clk 0:00:54]}  Rc6 {[%clk 0:00:23]} 28. d7 {[%clk 0:00:48]}  Ke7 {[%clk 0:00:23]} 29. Rcxc4 {[%clk 0:00:35]}  Rxc4 {[%clk 0:00:23]} 30. Rxc4 {[%clk 0:00:36]}  Rxd7 {[%clk 0:00:23]} 31. Ke2 {[%clk 0:00:37]}  Rd5 {[%clk 0:00:19]} 32. Rc3 {[%clk 0:00:35]}  a4 {[%clk 0:00:19]} 33. Rc4 {[%clk 0:00:34]}  Ra5 {[%clk 0:00:19]} 34. Kd3 {[%clk 0:00:33]}  Ke6 {[%clk 0:00:19]} 35. Kc3 {[%clk 0:00:33]}  Kd5 {[%clk 0:00:10]} 36. Kb4 {[%clk 0:00:25]}  Ra8 {[%clk 0:00:10]} 37. Rd4+ {[%clk 0:00:25]}  Ke5 {[%clk 0:00:10]} 38. Kb5 {[%clk 0:00:25]}  g5 {[%clk 0:00:07]} 39. f4+ {[%clk 0:00:20]}  gxf4 {[%clk 0:00:06]} 40. gxf4+ {[%clk 0:00:21]}  Ke6 {[%clk 0:00:05]} 41. Rxa4 {[%clk 0:00:20]}  Rg8 {[%clk 0:00:04]} 42. Rb4 {[%clk 0:00:16]}  Rg3 {[%clk 0:00:04]} 43. a4 {[%clk 0:00:12]}  Kd7 {[%clk 0:00:03]} 44. a5 {[%clk 0:00:12]}  Kc7 {[%clk 0:00:03]} 45. Rxb3 {[%clk 0:00:11]}  Rxh3 {[%clk 0:00:03]} 46. Ka6 {[%clk 0:00:11]}  Rh1 {[%clk 0:00:01]} 47. Rb7+ {[%clk 0:00:11]}  Kc6 {[%clk 0:00:01]} 48. Rxf7 {[%clk 0:00:12]}  Rb1 {[%clk 0:00:01]} 49. Rf6+ {[%clk 0:00:11]}  Kc7 {[%clk 0:00:01]} 50. Rxf5 {[%clk 0:00:10]}  h4 {[%clk 0:00:02]} 51. Rh5 {[%clk 0:00:10]}  Rxb2 {[%clk 0:00:01]} 52. Rxh4 {[%clk 0:00:11]}  Rb3 {[%clk 0:00:01]} 53. Rh3 {[%clk 0:00:10]}  Kc6 {[%clk 0:00:01]} 54. f5 {[%clk 0:00:10]} 1-0


[Site "https://www.chess.com"]

[Event "Titled Tuesday Blitz June 07 Early 2022"]
[White "Lewtak, Damian"]
[Black "Le, Tuan Minh"]
[WhiteFideId "1141724"]
[BlackFideId "12401153"]
[WhiteElo "2379"]
[BlackElo "2530"]
[Result "0-1"]
[Round "03"]
[TimeControl "180+1"]
[Date "2022.06.07"]
[WhiteClock "0:00:58"]
[BlackClock "0:01:31"]

1. e4 {[%clk 0:03:00]}  c5 {[%clk 0:02:57]} 2. Nf3 {[%clk 0:02:58]}  Nf6 {[%clk 0:02:57]} 3. e5 {[%clk 0:02:57]}  Nd5 {[%clk 0:02:57]} 4. Nc3 {[%clk 0:02:58]}  e6 {[%clk 0:02:57]} 5. Ne4 {[%clk 0:02:58]}  f5 {[%clk 0:02:57]} 6. Nc3 {[%clk 0:02:51]}  Ne7 {[%clk 0:02:57]} 7. b3 {[%clk 0:02:49]}  Nbc6 {[%clk 0:02:54]} 8. Bb2 {[%clk 0:02:44]}  a6 {[%clk 0:02:54]} 9. a4 {[%clk 0:02:39]}  Ng6 {[%clk 0:02:51]} 10. Be2 {[%clk 0:02:30]}  Be7 {[%clk 0:02:32]} 11. d4 {[%clk 0:02:16]}  cxd4 {[%clk 0:02:30]} 12. Nxd4 {[%clk 0:02:17]}  Ncxe5 {[%clk 0:02:26]} 13. a5 {[%clk 0:02:09]}  b5 {[%clk 0:02:14]} 14. axb6 {[%clk 0:02:07]}  Qxb6 {[%clk 0:02:15]} 15. Nf3 {[%clk 0:01:58]}  Ng4 {[%clk 0:02:06]} 16. O-O {[%clk 0:01:57]}  O-O {[%clk 0:02:04]} 17. h3 {[%clk 0:01:56]}  Nf6 {[%clk 0:02:03]} 18. Ra4 {[%clk 0:01:53]}  Bb7 {[%clk 0:02:00]} 19. Qd2 {[%clk 0:01:42]}  Bc6 {[%clk 0:01:58]} 20. Ra2 {[%clk 0:01:39]}  Bb4 {[%clk 0:01:49]} 21. Qg5 {[%clk 0:01:14]}  Bxc3 {[%clk 0:01:35]} 22. Bxc3 {[%clk 0:01:15]}  Ne4 {[%clk 0:01:36]} 23. Bd4 {[%clk 0:01:14]}  Qxd4 {[%clk 0:01:35]} 24. Qxg6 {[%clk 0:01:04]}  Qb6 {[%clk 0:01:30]} 25. Qh5 {[%clk 0:00:58]}  Ng3 {[%clk 0:01:31]} 0-1


[Site "https://www.chess.com"]

[Event "Titled Tuesday Blitz June 07 Early 2022"]
[White "Livaic, Leon"]
[Black "Agasarov, Benik"]
[WhiteFideId "14531534"]
[BlackFideId "13314823"]
[WhiteElo "2540"]
[BlackElo "2618"]
[Result "1/2-1/2"]
[Round "03"]
[TimeControl "180+1"]
[Date "2022.06.07"]
[WhiteClock "0:00:46"]
[BlackClock "0:00:09"]

1. d4 {[%clk 0:03:00]}  Nf6 {[%clk 0:02:59]} 2. c4 {[%clk 0:03:00]}  e6 {[%clk 0:02:58]} 3. Nf3 {[%clk 0:03:00]}  d5 {[%clk 0:02:54]} 4. Nc3 {[%clk 0:03:00]}  Bb4 {[%clk 0:02:51]} 5. Bg5 {[%clk 0:03:00]}  h6 {[%clk 0:02:50]} 6. Bxf6 {[%clk 0:03:01]}  Qxf6 {[%clk 0:02:48]} 7. e3 {[%clk 0:03:02]}  O-O {[%clk 0:02:47]} 8. Rc1 {[%clk 0:03:01]}  Rd8 {[%clk 0:02:44]} 9. a3 {[%clk 0:02:48]}  Bxc3+ {[%clk 0:02:29]} 10. Rxc3 {[%clk 0:02:48]}  c5 {[%clk 0:02:22]} 11. cxd5 {[%clk 0:02:48]}  cxd4 {[%clk 0:02:05]} 12. Qxd4 {[%clk 0:02:47]}  Qxd4 {[%clk 0:02:01]} 13. Nxd4 {[%clk 0:02:48]}  exd5 {[%clk 0:02:01]} 14. Rc7 {[%clk 0:02:48]}  Nc6 {[%clk 0:01:48]} 15. Nxc6 {[%clk 0:02:47]}  bxc6 {[%clk 0:01:49]} 16. Rxc6 {[%clk 0:02:48]}  d4 {[%clk 0:01:49]} 17. Bc4 {[%clk 0:02:36]}  dxe3 {[%clk 0:01:45]} 18. fxe3 {[%clk 0:02:37]}  Bb7 {[%clk 0:01:41]} 19. Rc7 {[%clk 0:02:35]}  Bxg2 {[%clk 0:01:41]} 20. Rg1 {[%clk 0:02:30]}  Bd5 {[%clk 0:01:39]} 21. Bxd5 {[%clk 0:01:59]}  Rxd5 {[%clk 0:01:39]} 22. Rf1 {[%clk 0:02:00]}  f5 {[%clk 0:01:13]} 23. Rf4 {[%clk 0:01:37]}  Re8 {[%clk 0:01:07]} 24. Ke2 {[%clk 0:01:36]}  Rde5 {[%clk 0:01:05]} 25. Rc3 {[%clk 0:01:28]}  g5 {[%clk 0:01:01]} 26. Ra4 {[%clk 0:01:27]}  a5 {[%clk 0:01:01]} 27. Kf3 {[%clk 0:01:20]}  R8e7 {[%clk 0:00:59]} 28. Rac4 {[%clk 0:01:17]}  Kf7 {[%clk 0:00:56]} 29. h3 {[%clk 0:01:16]}  h5 {[%clk 0:00:54]} 30. Rc6 {[%clk 0:01:14]}  g4+ {[%clk 0:00:50]} 31. hxg4 {[%clk 0:01:15]}  fxg4+ {[%clk 0:00:50]} 32. Kf2 {[%clk 0:01:09]}  Rf5+ {[%clk 0:00:47]} 33. Kg2 {[%clk 0:01:07]}  Rf3 {[%clk 0:00:44]} 34. R6c5 {[%clk 0:01:07]}  Rfxe3 {[%clk 0:00:39]} 35. Rxh5 {[%clk 0:01:01]}  Rxc3 {[%clk 0:00:34]} 36. bxc3 {[%clk 0:01:02]}  Re2+ {[%clk 0:00:33]} 37. Kg3 {[%clk 0:01:00]}  Re3+ {[%clk 0:00:32]} 38. Kxg4 {[%clk 0:01:00]}  Rxc3 {[%clk 0:00:32]} 39. Rxa5 {[%clk 0:01:01]}  Ke6 {[%clk 0:00:30]} 40. Kf4 {[%clk 0:01:01]}  Kd6 {[%clk 0:00:30]} 41. Ke4 {[%clk 0:01:02]}  Rc1 {[%clk 0:00:27]} 42. Ra8 {[%clk 0:01:01]}  Kc7 {[%clk 0:00:26]} 43. Kd3 {[%clk 0:01:00]}  Kb7 {[%clk 0:00:26]} 44. Ra4 {[%clk 0:01:00]}  Ra1 {[%clk 0:00:26]} 45. Kc3 {[%clk 0:01:00]}  Kb6 {[%clk 0:00:26]} 46. Kb2 {[%clk 0:00:59]}  Rh1 {[%clk 0:00:25]} 47. Rg4 {[%clk 0:00:59]}  Rh2+ {[%clk 0:00:25]} 48. Kb3 {[%clk 0:00:59]}  Rh1 {[%clk 0:00:25]} 49. Ka4 {[%clk 0:00:57]}  Ka7 {[%clk 0:00:24]} 50. Rg5 {[%clk 0:00:54]}  Rh3 {[%clk 0:00:21]} 51. Kb4 {[%clk 0:00:53]}  Rh4+ {[%clk 0:00:20]} 52. Ka5 {[%clk 0:00:53]}  Rh1 {[%clk 0:00:19]} 53. Rg7+ {[%clk 0:00:52]}  Ka8 {[%clk 0:00:20]} 54. Rg6 {[%clk 0:00:52]}  Rh3 {[%clk 0:00:15]} 55. a4 {[%clk 0:00:52]}  Rb3 {[%clk 0:00:14]} 56. Ka6 {[%clk 0:00:52]}  Rb8 {[%clk 0:00:12]} 57. a5 {[%clk 0:00:49]}  Re8 {[%clk 0:00:12]} 58. Rf6 {[%clk 0:00:49]}  Kb8 {[%clk 0:00:11]} 59. Rd6 {[%clk 0:00:47]}  Kc7 {[%clk 0:00:11]} 60. Rb6 {[%clk 0:00:47]}  Ra8+ {[%clk 0:00:11]} 61. Kb5 {[%clk 0:00:47]}  Rb8 {[%clk 0:00:10]} 62. Ka6 {[%clk 0:00:44]}  Ra8+ {[%clk 0:00:09]} 63. Kb5 {[%clk 0:00:45]}  Rb8 {[%clk 0:00:10]} 64. Kc5 {[%clk 0:00:42]}  Rxb6 {[%clk 0:00:10]} 65. axb6+ {[%clk 0:00:43]}  Kb7 {[%clk 0:00:10]} 66. Kb5 {[%clk 0:00:44]}  Kb8 {[%clk 0:00:10]} 67. Kc6 {[%clk 0:00:45]}  Kc8 {[%clk 0:00:11]} 68. Kc5 {[%clk 0:00:45]}  Kb7 {[%clk 0:00:10]} 69. Kb5 {[%clk 0:00:46]}  Kb8 {[%clk 0:00:10]} 70. Ka6 {[%clk 0:00:46]}  Ka8 {[%clk 0:00:10]} 71. Ka5 {[%clk 0:00:45]}  Kb7 {[%clk 0:00:09]} 72. Kb5 {[%clk 0:00:46]} 1/2-1/2


[Site "https://www.chess.com"]

[Event "Titled Tuesday Blitz June 07 Early 2022"]
[White "Myshakov, Fyodor"]
[Black "Grigorov, Grigor"]
[WhiteFideId "14111284"]
[BlackFideId "2907313"]
[WhiteElo "2310"]
[BlackElo "2510"]
[Result "0-1"]
[Round "03"]
[TimeControl "180+1"]
[Date "2022.06.08"]
[WhiteClock "0:00:12"]
[BlackClock "0:00:09"]

1. c4 {[%clk 0:02:58]}  Nf6 {[%clk 0:02:58]} 2. Nc3 {[%clk 0:02:57]}  c5 {[%clk 0:02:56]} 3. Nf3 {[%clk 0:02:58]}  e6 {[%clk 0:02:54]} 4. g3 {[%clk 0:02:57]}  b6 {[%clk 0:02:54]} 5. Bg2 {[%clk 0:02:57]}  Bb7 {[%clk 0:02:55]} 6. O-O {[%clk 0:02:58]}  Be7 {[%clk 0:02:49]} 7. b3 {[%clk 0:02:57]}  O-O {[%clk 0:02:48]} 8. Bb2 {[%clk 0:02:57]}  d5 {[%clk 0:02:42]} 9. cxd5 {[%clk 0:02:52]}  Nxd5 {[%clk 0:02:39]} 10. Nxd5 {[%clk 0:02:52]}  Bxd5 {[%clk 0:02:37]} 11. d3 {[%clk 0:02:52]}  Nd7 {[%clk 0:02:35]} 12. Qd2 {[%clk 0:02:50]}  Rc8 {[%clk 0:02:30]} 13. Rac1 {[%clk 0:02:50]}  Rc7 {[%clk 0:02:18]} 14. Rfd1 {[%clk 0:02:47]}  Qa8 {[%clk 0:02:15]} 15. d4 {[%clk 0:02:44]}  Rfc8 {[%clk 0:02:13]} 16. dxc5 {[%clk 0:02:43]}  Nxc5 {[%clk 0:02:10]} 17. Qf4 {[%clk 0:02:32]}  Qb7 {[%clk 0:01:51]} 18. Qg4 {[%clk 0:02:18]}  f6 {[%clk 0:01:39]} 19. h4 {[%clk 0:02:03]}  Ne4 {[%clk 0:01:15]} 20. Rxc7 {[%clk 0:01:31]}  Rxc7 {[%clk 0:00:50]} 21. Nd4 {[%clk 0:01:13]}  Nxf2 {[%clk 0:00:25]} 22. Kxf2 {[%clk 0:00:50]}  Bxg2 {[%clk 0:00:25]} 23. Qxe6+ {[%clk 0:00:32]}  Kf8 {[%clk 0:00:24]} 24. Nf5 {[%clk 0:00:30]}  Qe4 {[%clk 0:00:16]} 25. Qxe4 {[%clk 0:00:17]}  Bxe4 {[%clk 0:00:16]} 26. Nxe7 {[%clk 0:00:15]}  Kxe7 {[%clk 0:00:15]} 27. Ke3 {[%clk 0:00:14]}  Bb7 {[%clk 0:00:14]} 28. Rc1 {[%clk 0:00:12]}  Rd7 {[%clk 0:00:14]} 29. Ba3+ {[%clk 0:00:11]}  Ke6 {[%clk 0:00:14]} 30. Bb4 {[%clk 0:00:10]}  h5 {[%clk 0:00:14]} 31. Bd2 {[%clk 0:00:09]}  Kf5 {[%clk 0:00:14]} 32. Rf1+ {[%clk 0:00:09]}  Kg4 {[%clk 0:00:13]} 33. Rg1 {[%clk 0:00:08]}  Ba6 {[%clk 0:00:13]} 34. Re1 {[%clk 0:00:05]}  Kxg3 {[%clk 0:00:10]} 35. Bc3 {[%clk 0:00:05]}  Kxh4 {[%clk 0:00:09]} 36. Kf4 {[%clk 0:00:06]}  g5+ {[%clk 0:00:06]} 37. Kf5 {[%clk 0:00:06]}  Kg3 {[%clk 0:00:05]} 38. Bxf6 {[%clk 0:00:05]}  g4 {[%clk 0:00:05]} 39. Be5+ {[%clk 0:00:04]}  Kf2 {[%clk 0:00:06]} 40. Rh1 {[%clk 0:00:03]}  Bxe2 {[%clk 0:00:05]} 41. Rh2+ {[%clk 0:00:03]}  Kf3 {[%clk 0:00:05]} 42. Rxh5 {[%clk 0:00:03]}  Bd3+ {[%clk 0:00:05]} 43. Ke6 {[%clk 0:00:03]}  Rb7 {[%clk 0:00:05]} 44. Rg5 {[%clk 0:00:03]}  Rh7 {[%clk 0:00:04]} 45. Kd6 {[%clk 0:00:03]}  Rh6+ {[%clk 0:00:04]} 46. Kc7 {[%clk 0:00:03]}  Rh7+ {[%clk 0:00:04]} 47. Kb8 {[%clk 0:00:03]}  Be4 {[%clk 0:00:05]} 48. Bc7 {[%clk 0:00:03]}  a5 {[%clk 0:00:04]} 49. Bxb6 {[%clk 0:00:03]}  Rb7+ {[%clk 0:00:04]} 50. Kc8 {[%clk 0:00:03]}  Rxb6 {[%clk 0:00:05]} 51. Rxa5 {[%clk 0:00:03]}  Rg6 {[%clk 0:00:05]} 52. Rc5 {[%clk 0:00:02]}  g3 {[%clk 0:00:05]} 53. Rc3+ {[%clk 0:00:03]}  Kf2 {[%clk 0:00:06]} 54. a4 {[%clk 0:00:03]}  g2 {[%clk 0:00:06]} 55. Rc1 {[%clk 0:00:04]}  g1=Q {[%clk 0:00:07]} 56. Rxg1 {[%clk 0:00:05]}  Rxg1 {[%clk 0:00:07]} 57. b4 {[%clk 0:00:06]}  Ra1 {[%clk 0:00:07]} 58. a5 {[%clk 0:00:06]}  Ra4 {[%clk 0:00:07]} 59. b5 {[%clk 0:00:06]}  Rxa5 {[%clk 0:00:07]} 60. b6 {[%clk 0:00:06]}  Rb5 {[%clk 0:00:08]} 61. Kc7 {[%clk 0:00:07]}  Rb1 {[%clk 0:00:08]} 62. Kd6 {[%clk 0:00:07]}  Rxb6+ {[%clk 0:00:08]} 63. Kc5 {[%clk 0:00:08]}  Rb3 {[%clk 0:00:08]} 64. Kd4 {[%clk 0:00:09]}  Re3 {[%clk 0:00:09]} 65. Ke5 {[%clk 0:00:09]}  Kf3 {[%clk 0:00:10]} 66. Kf6 {[%clk 0:00:09]}  Kf4 {[%clk 0:00:10]} 67. Ke6 {[%clk 0:00:10]}  Rd3 {[%clk 0:00:11]} 68. Kf6 {[%clk 0:00:11]}  Rd6+ {[%clk 0:00:11]} 69. Ke7 {[%clk 0:00:12]}  Ke5 {[%clk 0:00:11]} 70. Kf7 {[%clk 0:00:12]}  Rd7+ {[%clk 0:00:11]} 71. Ke8 {[%clk 0:00:12]}  Ra7 {[%clk 0:00:11]} 72. Kf8 {[%clk 0:00:12]}  Kf6 {[%clk 0:00:10]} 73. Ke8 {[%clk 0:00:13]}  Bf5 {[%clk 0:00:10]} 74. Kd8 {[%clk 0:00:12]}  Be6 {[%clk 0:00:09]} 0-1


[Site "https://www.chess.com"]

[Event "Titled Tuesday Blitz June 07 Early 2022"]
[White "Narayanan, Srinath"]
[Black "Richter, Nils"]
[WhiteFideId "5018420"]
[BlackFideId "12990809"]
[WhiteElo "2472"]
[BlackElo "2311"]
[Result "1-0"]
[Round "03"]
[TimeControl "180+1"]
[Date "2022.06.08"]
[WhiteClock "0:00:08"]
[BlackClock "0:00:05"]

1. e4 {[%clk 0:03:00]}  c5 {[%clk 0:02:58]} 2. Nf3 {[%clk 0:03:00]}  d6 {[%clk 0:02:58]} 3. d4 {[%clk 0:03:00]}  cxd4 {[%clk 0:02:59]} 4. Nxd4 {[%clk 0:03:01]}  Nf6 {[%clk 0:02:59]} 5. Nc3 {[%clk 0:03:00]}  a6 {[%clk 0:03:00]} 6. h3 {[%clk 0:02:59]}  e5 {[%clk 0:02:59]} 7. Nde2 {[%clk 0:02:59]}  h5 {[%clk 0:02:58]} 8. g3 {[%clk 0:02:54]}  Be6 {[%clk 0:02:55]} 9. Bg2 {[%clk 0:02:54]}  Nbd7 {[%clk 0:02:55]} 10. O-O {[%clk 0:02:52]}  Be7 {[%clk 0:02:54]} 11. Bg5 {[%clk 0:02:52]}  O-O {[%clk 0:02:54]} 12. Qd2 {[%clk 0:02:52]}  b5 {[%clk 0:02:53]} 13. a3 {[%clk 0:02:52]}  Nb6 {[%clk 0:02:51]} 14. b3 {[%clk 0:02:51]}  Rc8 {[%clk 0:02:51]} 15. Rad1 {[%clk 0:02:51]}  Qc7 {[%clk 0:02:51]} 16. f4 {[%clk 0:02:41]}  Rfd8 {[%clk 0:02:40]} 17. f5 {[%clk 0:02:40]}  Bd7 {[%clk 0:02:40]} 18. Bxf6 {[%clk 0:02:33]}  Bxf6 {[%clk 0:02:41]} 19. Qxd6 {[%clk 0:02:34]}  Qxd6 {[%clk 0:02:36]} 20. Rxd6 {[%clk 0:02:35]}  Be7 {[%clk 0:02:35]} 21. Rd3 {[%clk 0:02:29]}  Bxa3 {[%clk 0:02:32]} 22. Ra1 {[%clk 0:02:27]}  b4 {[%clk 0:02:25]} 23. Nd5 {[%clk 0:02:27]}  Nxd5 {[%clk 0:02:20]} 24. Rxd5 {[%clk 0:02:28]}  Bb5 {[%clk 0:02:20]} 25. c4 {[%clk 0:00:58]}  bxc3 {[%clk 0:02:19]} 26. Nxc3 {[%clk 0:00:59]}  Bc5+ {[%clk 0:01:20]} 27. Kh2 {[%clk 0:00:56]}  Bd4 {[%clk 0:01:20]} 28. Rxd8+ {[%clk 0:00:55]}  Rxd8 {[%clk 0:01:21]} 29. Rd1 {[%clk 0:00:55]}  Bc6 {[%clk 0:01:12]} 30. Nd5 {[%clk 0:00:55]}  Kf8 {[%clk 0:01:07]} 31. Rc1 {[%clk 0:00:50]}  Be8 {[%clk 0:00:59]} 32. Bf3 {[%clk 0:00:48]}  h4 {[%clk 0:00:59]} 33. gxh4 {[%clk 0:00:48]}  Rb8 {[%clk 0:00:59]} 34. Bd1 {[%clk 0:00:43]}  a5 {[%clk 0:00:55]} 35. h5 {[%clk 0:00:41]}  Bb5 {[%clk 0:00:47]} 36. Kg3 {[%clk 0:00:28]}  Bd3 {[%clk 0:00:46]} 37. Kf3 {[%clk 0:00:28]}  Kg8 {[%clk 0:00:41]} 38. Rc7 {[%clk 0:00:25]}  a4 {[%clk 0:00:19]} 39. bxa4 {[%clk 0:00:25]}  Rb2 {[%clk 0:00:19]} 40. a5 {[%clk 0:00:13]}  Rf2+ {[%clk 0:00:19]} 41. Kg3 {[%clk 0:00:13]}  Rf1 {[%clk 0:00:20]} 42. Bf3 {[%clk 0:00:13]}  Rg1+ {[%clk 0:00:18]} 43. Kh2 {[%clk 0:00:12]}  Rf1 {[%clk 0:00:10]} 44. Kg2 {[%clk 0:00:13]}  Rg1+ {[%clk 0:00:10]} 45. Kh2 {[%clk 0:00:13]}  Rf1 {[%clk 0:00:10]} 46. Bg2 {[%clk 0:00:10]}  Rf2 {[%clk 0:00:11]} 47. Kg3 {[%clk 0:00:09]}  Rxg2+ {[%clk 0:00:11]} 48. Kxg2 {[%clk 0:00:09]}  Bxe4+ {[%clk 0:00:12]} 49. Kh2 {[%clk 0:00:09]}  Bxd5 {[%clk 0:00:13]} 50. a6 {[%clk 0:00:10]}  Kh7 {[%clk 0:00:08]} 51. a7 {[%clk 0:00:09]}  f6 {[%clk 0:00:06]} 52. Kg3 {[%clk 0:00:06]}  Kh6 {[%clk 0:00:06]} 53. Kg4 {[%clk 0:00:06]}  Bh1 {[%clk 0:00:05]} 54. Rc8 {[%clk 0:00:05]}  Kh7 {[%clk 0:00:04]} 55. a8=Q {[%clk 0:00:05]}  Bxa8 {[%clk 0:00:04]} 56. Rxa8 {[%clk 0:00:06]}  Be3 {[%clk 0:00:04]} 57. Re8 {[%clk 0:00:06]}  Bh6 {[%clk 0:00:05]} 58. Kf3 {[%clk 0:00:06]}  Bg5 {[%clk 0:00:04]} 59. Kg4 {[%clk 0:00:06]}  Bh6 {[%clk 0:00:04]} 60. h4 {[%clk 0:00:07]}  Bf4 {[%clk 0:00:05]} 61. Kf3 {[%clk 0:00:07]}  Bh6 {[%clk 0:00:06]} 62. Re7 {[%clk 0:00:07]}  Bf4 {[%clk 0:00:06]} 63. Rd7 {[%clk 0:00:07]}  Kh6 {[%clk 0:00:06]} 64. Kg4 {[%clk 0:00:07]}  Kh7 {[%clk 0:00:06]} 65. Rd8 {[%clk 0:00:07]}  Bh6 {[%clk 0:00:07]} 66. Rd1 {[%clk 0:00:06]}  Bf4 {[%clk 0:00:07]} 67. Rf1 {[%clk 0:00:07]}  Bh6 {[%clk 0:00:08]} 68. Kf3 {[%clk 0:00:07]}  Bd2 {[%clk 0:00:07]} 69. Rg1 {[%clk 0:00:07]}  Kh6 {[%clk 0:00:07]} 70. Kg4 {[%clk 0:00:08]}  Be3 {[%clk 0:00:06]} 71. Rg2 {[%clk 0:00:08]}  Bf4 {[%clk 0:00:07]} 72. Re2 {[%clk 0:00:07]}  Kh7 {[%clk 0:00:07]} 73. Re4 {[%clk 0:00:08]}  Kh6 {[%clk 0:00:06]} 74. Ra4 {[%clk 0:00:07]}  Be3 {[%clk 0:00:06]} 75. Ra8 {[%clk 0:00:06]}  Kh7 {[%clk 0:00:06]} 76. Kf3 {[%clk 0:00:07]}  Bf4 {[%clk 0:00:06]} 77. Ke4 {[%clk 0:00:07]}  Bh6 {[%clk 0:00:06]} 78. Kd5 {[%clk 0:00:07]}  Bf4 {[%clk 0:00:06]} 79. Ke6 {[%clk 0:00:08]}  Bh6 {[%clk 0:00:05]} 80. Kf7 {[%clk 0:00:08]}  e4 {[%clk 0:00:05]} 81. Re8 {[%clk 0:00:08]}  e3 {[%clk 0:00:05]} 82. Re7 {[%clk 0:00:08]}  Kh8 {[%clk 0:00:05]} 83. Kg6 {[%clk 0:00:08]} 1-0


[Site "https://www.chess.com"]

[Event "Titled Tuesday Blitz June 07 Early 2022"]
[White "Nesterov, Arseniy"]
[Black "Pham, Le Thao Nguyen"]
[WhiteFideId "24198455"]
[BlackFideId "12401226"]
[WhiteElo "2489"]
[BlackElo "2282"]
[Result "1-0"]
[Round "03"]
[TimeControl "180+1"]
[Date "2022.06.07"]
[WhiteClock "0:00:37"]
[BlackClock "0:00:07"]

1. d4 {[%clk 0:03:00]}  d5 {[%clk 0:02:59]} 2. c4 {[%clk 0:03:00]}  c6 {[%clk 0:02:59]} 3. Nc3 {[%clk 0:02:59]}  Nf6 {[%clk 0:02:56]} 4. e3 {[%clk 0:02:56]}  g6 {[%clk 0:02:54]} 5. Nf3 {[%clk 0:02:55]}  Bg7 {[%clk 0:02:54]} 6. h3 {[%clk 0:02:54]}  O-O {[%clk 0:02:55]} 7. Bd3 {[%clk 0:02:53]}  a6 {[%clk 0:02:46]} 8. cxd5 {[%clk 0:02:50]}  cxd5 {[%clk 0:02:45]} 9. O-O {[%clk 0:02:49]}  Nc6 {[%clk 0:02:45]} 10. b3 {[%clk 0:02:47]}  Bd7 {[%clk 0:02:18]} 11. a4 {[%clk 0:02:15]}  Nb4 {[%clk 0:01:57]} 12. Be2 {[%clk 0:02:13]}  Rc8 {[%clk 0:01:57]} 13. Ba3 {[%clk 0:02:12]}  Qa5 {[%clk 0:01:50]} 14. Qd2 {[%clk 0:02:08]}  Bf5 {[%clk 0:01:07]} 15. Rac1 {[%clk 0:01:04]}  Nc2 {[%clk 0:00:39]} 16. Bc5 {[%clk 0:01:01]}  b6 {[%clk 0:00:17]} 17. b4 {[%clk 0:00:53]}  Nxb4 {[%clk 0:00:16]} 18. Bxe7 {[%clk 0:00:52]}  Rfe8 {[%clk 0:00:09]} 19. Bxb4 {[%clk 0:00:49]}  Qxb4 {[%clk 0:00:10]} 20. Bxa6 {[%clk 0:00:50]}  Rc7 {[%clk 0:00:09]} 21. Ne2 {[%clk 0:00:37]}  Qxd2 {[%clk 0:00:07]} 22. Nxd2 {[%clk 0:00:38]}  Rec8 {[%clk 0:00:07]} 23. Bxc8 {[%clk 0:00:37]} 1-0


[Site "https://www.chess.com"]